[Event "Bayerischer Schachbund IM 2024"]
[Site "Rosenheim"]
[Date "2024.08.15"]
[Round "5.7"]
[White "Goldbeck, Lars"]
[Black "Miller, Eduard"]
[Result "1/2-1/2"]
[Annotator "RC"]
[ECO "A49"]
[WhiteElo "2321"]
[BlackElo "2319"]
[PlyCount "90"]
[EventDate "2024.08.12"]
[EventType "tourn"]
[EventCountry "GER"]
[SourceTitle "playchess.com"]
[Source "ChessBase"]
[SourceQuality "1"]
[TimeControl "40/5400+30:1800+30"]

1. d4 {[%emt 0:00:02]} Nf6 {[%emt 0:00:10]} 2. Nf3 {[%emt 0:00:08]} d6 {[%emt 0:00:17]} 3. g3 {[%emt 0:00:05]} g6 {[%emt 0:00:12]} 4. Bg2 {[%emt 0:00:01]} Bg7 {[%emt 0:00:06]} 5. O-O {[%emt 0:00:03]} O-O {[%emt 0:00:08]} 6. a4 {[%emt 0:00:01]} a5 {[%emt 0:10:37]} 7. Re1 {[%emt 0:00:31]} Nfd7 {[%emt 0:15:08]} 8. e4 {[%emt 0:09:40]} e5 {[%emt 0:00:04]} 9. Nc3 {[%emt 0:01:08]} Nc6 {[%emt 0:12:34]} 10. Bg5 {[%emt 0:06:59]} f6 {[%emt 0:06:40]} 11. Be3 {[%emt 0:00:12]} exd4 {[%emt 0:04:46]} 12. Nxd4 {[%emt 0:00:06]} Nxd4 {[%emt 0:00:10]} 13. Bxd4 {[%emt 0:02:58]} Ne5 {[%emt 0:00:53]} 14. Nd5 {[%emt 0:25:40]} Nc6 {[%emt 0:05:44]} 15. Bc3 {[%emt 0:01:10]} Be6 {[%emt 0:10:13]} 16. Qd2 {[%emt 0:06:09]} Kh8 {[%emt 0:00:55]} 17. f4 {[%emt 0:02:38]} Qd7 {[%emt 0:03:53]} 18. Re3 {[%emt 0:07:11]} b6 {[%emt 0:05:16]} 19. b3 {[%emt 0:04:18]} Rae8 {[%emt 0:00:48]} 20. Rae1 {[%emt 0:04:51]} Nd8 {[%emt 0:08:33]} 21. R3e2 {[%emt 0:16:09]} Bxd5 {[%emt 0:08:35]} 22. Qxd5 {[%emt 0:00:18]} Qf7 {[%emt 0:00:37]} 23. Qd3 {[%emt 0:00:54]} Ne6 {[%emt 0:00:37]} 24. Qf3 {[%emt 0:01:27]} Nc5 {[%emt 0:00:30]} 25. Re3 {[%emt 0:02:00]} Re7 {[%emt 0:00:19]} 26. Bf1 {[%emt 0:00:21]} Qe8 {[%emt 0:00:58]} 27. Bb5 {[%emt 0:01:34]} Qc8 {[%emt 0:00:16]} 28. Bc6 {[%emt 0:00:45]} Qe6 {[%emt 0:02:05]} 29. Kg2 {[%emt 0:00:47]} Qc8 {[%emt 0:01:18]} 30. h4 {[%emt 0:01:02]} f5 {[%emt 0:00:08]} 31. e5 {[%emt 0:01:38]} dxe5 {[%emt 0:00:07]} 32. Bxe5 {[%emt 0:00:16]} Bxe5 {[%emt 0:00:17]} 33. Rxe5 {[%emt 0:00:07]} Rxe5 {[%emt 0:00:26]} 34. Rxe5 {[%emt 0:00:56]} Qd8 {[%emt 0:00:29]} 35. h5 {[%emt 0:01:43]} Kg7 {[%emt 0:00:23]} 36. Qe2 {[%emt 0:01:43]} Rf7 {[%emt 0:02:04]} 37. Kh2 {[%emt 0:01:54]} Qd6 {[%emt 0:00:26]} 38. Be8 {[%emt 0:00:24]} Rf8 {[%emt 0:01:00]} 39. Re7+ {[%emt 0:01:08]} Kh6 {[%emt 0:00:04]} 40. hxg6 {[%emt 0:00:54]} hxg6 {[%emt 0:00:11]} 41. Qe5 {[%emt 0:09:13]} Qxe5 {[%emt 0:00:34]} 42. Rxe5 {[%emt 0:00:11]} Kg7 {[%emt 0:05:04]} 43. Kg2 {[%emt 0:03:54]} Kf6 {[%emt 0:02:11]} 44. Bc6 {[%emt 0:01:33]} Rd8 {[%emt 0:00:18]} 45. Rd5 {[%emt 0:00:22]} Rxd5 {[%emt 0:06:04]} 1/2-1/2

[Event "Bayerischer Schachbund IM 2024"]
[Site "Rosenheim"]
[Date "2024.08.15"]
[Round "5.8"]
[White "Schneider, Jana"]
[Black "Hasenohr, Benedict"]
[Result "1/2-1/2"]
[Annotator "RC"]
[ECO "C02"]
[WhiteElo "2275"]
[BlackElo "2339"]
[PlyCount "83"]
[EventDate "2024.08.12"]
[EventType "tourn"]
[EventCountry "GER"]
[SourceTitle "playchess.com"]
[Source "ChessBase"]
[SourceQuality "1"]
[TimeControl "40/5400+30:1800+30"]

1. e4 {[%emt 0:00:06]} e6 {[%emt 0:00:04]} 2. d4 {[%emt 1:31:24]} d5 {[%emt 0:00:07]} 3. e5 {[%emt 0:00:00]} c5 {[%emt 0:00:05]} 4. c3 {[%emt 0:00:00]} Nc6 {[%emt 0:00:05]} 5. Nf3 {[%emt 0:00:00]} Bd7 {[%emt 0:00:06]} 6. Be2 {[%emt 0:00:00]} f6 {[%emt 0:00:19]} 7. O-O {[%emt 0:00:00]} fxe5 {[%emt 0:00:05]} 8. Nxe5 {[%emt 0:00:00]} Nxe5 {[%emt 0:00:05]} 9. dxe5 {[%emt 0:00:00]} Qc7 {[%emt 0:00:07]} 10. Re1 {[%emt 0:00:00]} Ne7 {[%emt 0:01:18]} 11. Bf1 {[%emt 0:00:00]} O-O-O {[%emt 0:01:27]} 12. a4 {[%emt 0:00:00]} Nf5 {[%emt 0:01:29]} 13. Na3 {[%emt 0:00:00]} c4 {[%emt 0:00:08]} 14. b3 {[%emt 0:00:00]} cxb3 {[%emt 0:07:42]} 15. Nb5 {[%emt 0:00:00]} Bxb5 {[%emt 0:00:06]} 16. axb5 {[%emt 0:07:00]} Bc5 {[%emt 0:00:25]} 17. Qxb3 {[%emt 0:00:00]} Rhf8 {[%emt 0:00:11]} 18. Ra2 {[%emt 0:00:00]} Kb8 {[%emt 0:12:35]} 19. Ba3 {[%emt 0:00:00]} Ne7 {[%emt 0:01:08]} 20. Bxc5 {[%emt 0:00:00]} Qxc5 {[%emt 0:00:06]} 21. Qa3 {[%emt 0:00:00]} Qxa3 {[%emt 0:08:10]} 22. Rxa3 {[%emt 0:00:00]} Rc8 {[%emt 0:19:40]} 23. Rea1 {[%emt 0:00:00]} Rf5 {[%emt 0:02:54]} 24. Rxa7 {[%emt 0:00:00]} Kc7 {[%emt 0:00:18]} 25. R1a6 {[%emt 0:00:00]} Rxe5 {[%emt 0:04:11]} 26. g3 {[%emt 0:00:00]} Rd8 {[%emt 0:23:48]} 27. f4 {[%emt 0:00:00]} Re1 {[%emt 0:04:04]} 28. Kf2 {[%emt 0:00:00]} Rxf1+ {[%emt 0:00:11]} 29. Kxf1 {[%emt 0:00:00]} Nc8 {[%emt 0:00:06]} 30. b6+ {[%emt 0:00:00]} Kc6 {[%emt 0:00:06]} 31. Ra2 {[%emt 0:00:00]} Nxa7 {[%emt 0:00:38]} 32. bxa7 {[%emt 0:00:00]} Ra8 {[%emt 0:00:05]} 33. Ke2 {[%emt 0:00:00]} Kb6 {[%emt 0:01:40]} 34. Kd3 {[%emt 0:00:00]} Rxa7 {[%emt 0:00:54]} 35. Re2 {[%emt 0:00:00]} Kc5 {[%emt 0:03:11]} 36. Rxe6 {[%emt 0:03:17]} b5 {[%emt 0:00:04]} 37. Re8 {[%emt 0:00:15]} Ra2 {[%emt 0:03:40]} 38. Re7 {[%emt 0:00:46]} Rxh2 {[%emt 0:00:21]} 39. Rc7+ {[%emt 0:00:50]} Kd6 {[%emt 0:00:40]} 40. Rxg7 {[%emt 0:00:06]} h5 {[%emt 0:03:47]} 41. Rh7 {[%emt 0:32:26]} Kc5 {[%emt 0:33:08]} 42. Rc7+ {[%emt 0:01:24]} 1/2-1/2

[Event "Bayerischer Schachbund IM 2024"]
[Site "Rosenheim"]
[Date "2024.08.15"]
[Round "5.9"]
[White "Lucas, Arthur"]
[Black "Reimann, Sebastian"]
[Result "1-0"]
[Annotator "RC"]
[ECO "B91"]
[WhiteElo "2332"]
[BlackElo "2327"]
[PlyCount "65"]
[EventDate "2024.08.12"]
[EventType "tourn"]
[EventCountry "GER"]
[SourceTitle "playchess.com"]
[Source "ChessBase"]
[SourceQuality "1"]
[TimeControl "40/5400+30:1800+30"]

1. e4 {[%emt 0:00:03]} c5 {[%emt 0:08:45]} 2. Nf3 {[%emt 0:00:15]} d6 {[%emt 0:00:06]} 3. d4 {[%emt 0:00:07]} cxd4 {[%emt 0:00:04]} 4. Nxd4 {[%emt 0:00:10]} Nf6 {[%emt 0:00:05]} 5. Nc3 {[%emt 0:00:05]} a6 {[%emt 0:00:04]} 6. g3 {[%emt 0:00:19]} e5 {[%emt 0:01:48]} 7. Nb3 {[%emt 0:00:09]} Be6 {[%emt 0:01:20]} 8. f4 {[%emt 0:00:26]} exf4 {[%emt 0:09:54]} 9. Bxf4 {[%emt 0:00:07]} Be7 {[%emt 0:07:00]} 10. Qd2 {[%emt 0:00:21]} Nc6 {[%emt 0:24:03]} 11. O-O-O {[%emt 0:04:31]} Ne5 {[%emt 0:06:43]} 12. Nd4 {[%emt 0:01:35]} Qc7 {[%emt 0:15:50]} 13. Nxe6 {[%emt 0:25:34]} fxe6 {[%emt 0:00:02]} 14. Bh3 {[%emt 0:00:36]} Nc4 {[%emt 0:00:48]} 15. Qd3 {[%emt 0:02:00]} e5 {[%emt 0:01:35]} 16. Bg5 {[%emt 0:01:53]} Nb6 {[%emt 0:10:13]} 17. Bxf6 {[%emt 0:04:35]} gxf6 {[%emt 0:01:12]} 18. Be6 {[%emt 0:02:29]} Qc5 {[%emt 0:02:33]} 19. Qf3 {[%emt 0:02:48]} Kd8 {[%emt 0:00:08]} 20. Rd3 {[%emt 0:01:44]} Kc7 {[%emt 0:00:47]} 21. Nd5+ {[%emt 0:01:00]} Nxd5 {[%emt 0:00:03]} 22. Bxd5 {[%emt 0:00:10]} Kb8 {[%emt 0:00:03]} 23. Qf5 {[%emt 0:04:26]} Qc8 {[%emt 0:00:19]} 24. Be6 {[%emt 0:01:28]} Qe8 {[%emt 0:00:07]} 25. Rc3 {[%emt 0:02:24]} Bd8 {[%emt 0:00:38]} 26. Rd1 {[%emt 0:04:33]} Qe7 {[%emt 0:01:13]} 27. Rb3 {[%emt 0:02:15]} Ka7 {[%emt 0:00:59]} 28. Qf2+ {[%emt 0:02:42]} b6 {[%emt 0:00:08]} 29. Bf5 {[%emt 0:03:41]} Rb8 {[%emt 0:00:30]} 30. Rc3 {[%emt 0:00:45]} Bc7 {[%emt 0:00:53]} 31. Rc6 {[%emt 0:02:41]} Kb7 {[%emt 0:00:08]} 32. Qd2 {[%emt 0:00:07]} Qe8 {[%emt 0:02:10]} 33. Rxc7+ {[%emt 0:05:57]} 1-0

[Event "Bayerischer Schachbund IM 2024"]
[Site "Rosenheim"]
[Date "2024.08.15"]
[Round "5.10"]
[White "Platzgummer, Fabian"]
[Black "Zysk, Robert"]
[Result "1/2-1/2"]
[Annotator "RC"]
[ECO "E14"]
[WhiteElo "2304"]
[BlackElo "2376"]
[PlyCount "33"]
[EventDate "2024.08.12"]
[EventType "tourn"]
[EventCountry "GER"]
[SourceTitle "playchess.com"]
[Source "ChessBase"]
[SourceQuality "1"]
[TimeControl "40/5400+30:1800+30"]

1. Nf3 {[%emt 0:00:03]} Nf6 {[%emt 0:00:46]} 2. c4 {[%emt 0:00:10]} e6 {[%emt 0:04:24]} 3. b3 {[%emt 0:01:32]} b6 {[%emt 0:01:56]} 4. Bb2 {[%emt 0:01:32]} Bb7 {[%emt 0:00:14]} 5. e3 {[%emt 0:00:36]} c5 {[%emt 0:05:22]} 6. Nc3 {[%emt 0:02:36]} Be7 {[%emt 0:02:30]} 7. Be2 {[%emt 0:05:12]} O-O {[%emt 0:00:42]} 8. O-O {[%emt 0:01:18]} d5 {[%emt 0:00:48]} 9. cxd5 {[%emt 0:01:16]} Nxd5 {[%emt 0:00:15]} 10. d4 {[%emt 0:00:51]} Nd7 {[%emt 0:01:14]} 11. Rc1 {[%emt 0:16:36]} Rc8 {[%emt 0:01:29]} 12. Nxd5 {[%emt 0:14:50]} Bxd5 {[%emt 0:00:48]} 13. Bd3 {[%emt 0:00:12]} cxd4 {[%emt 0:12:40]} 14. Rxc8 {[%emt 0:04:54]} Qxc8 {[%emt 0:00:05]} 15. Nxd4 {[%emt 0:00:11]} Rd8 {[%emt 0:15:36]} 16. Qe2 {[%emt 0:09:56]} Qa8 {[%emt 0:03:44]} 17. f3 {[%emt 0:10:34]} 1/2-1/2

[Event "Bayerischer Schachbund IM 2024"]
[Site "Rosenheim"]
[Date "2024.08.15"]
[Round "6.6"]
[White "Schulz, Lukas"]
[Black "Zysk, Robert"]
[Result "0-1"]
[Annotator "RC"]
[ECO "C00"]
[WhiteElo "2298"]
[BlackElo "2376"]
[PlyCount "74"]
[EventDate "2024.08.12"]
[EventType "tourn"]
[EventCountry "GER"]
[SourceTitle "playchess.com"]
[Source "ChessBase"]
[SourceQuality "1"]
[TimeControl "40/5400+30:1800+30"]

1. e4 {[%emt 0:00:04]} e6 {[%emt 0:00:15]} 2. Nc3 {[%emt 0:00:23]} d5 {[%emt 0:01:04]} 3. g3 {[%emt 0:00:28]} dxe4 {[%emt 0:03:11]} 4. Nxe4 {[%emt 0:00:08]} Bd7 {[%emt 0:00:49]} 5. Nf3 {[%emt 0:01:45]} Nf6 {[%emt 0:04:03]} 6. d3 {[%emt 0:01:51]} Nxe4 {[%emt 0:09:47]} 7. dxe4 {[%emt 0:00:28]} Bc5 {[%emt 0:05:43]} 8. Ne5 {[%emt 0:19:42]} Qe7 {[%emt 0:01:16]} 9. Qe2 {[%emt 0:06:24]} Nc6 {[%emt 0:16:56]} 10. Nxd7 {[%emt 0:05:47]} Qxd7 {[%emt 0:00:07]} 11. c3 {[%emt 0:00:19]} O-O-O {[%emt 0:08:11]} 12. Be3 {[%emt 0:02:06]} Qe7 {[%emt 0:03:44]} 13. Bg2 {[%emt 0:01:32]} h5 {[%emt 0:05:31]} 14. O-O {[%emt 0:00:54]} Ne5 {[%emt 0:03:12]} 15. b4 {[%emt 0:11:12]} Bxe3 {[%emt 0:00:19]} 16. Qxe3 {[%emt 0:00:04]} Kb8 {[%emt 0:00:24]} 17. Rfd1 {[%emt 0:01:47]} Qf6 {[%emt 0:02:28]} 18. Qe2 {[%emt 0:01:58]} g5 {[%emt 0:04:15]} 19. Rxd8+ {[%emt 0:05:28]} Rxd8 {[%emt 0:02:18]} 20. Rd1 {[%emt 0:05:41]} g4 {[%emt 0:03:41]} 21. h3 {[%emt 0:03:43]} Rxd1+ {[%emt 0:06:58]} 22. Qxd1 {[%emt 0:00:06]} gxh3 {[%emt 0:00:47]} 23. Bxh3 {[%emt 0:05:19]} h4 {[%emt 0:00:16]} 24. gxh4 {[%emt 0:02:46]} Qxh4 {[%emt 0:00:20]} 25. Bg2 {[%emt 0:01:29]} a6 {[%emt 0:01:37]} 26. Qd2 {[%emt 0:02:56]} Ng6 {[%emt 0:01:28]} 27. Qe3 {[%emt 0:11:43]} Nf4 {[%emt 0:01:32]} 28. Qf3 {[%emt 0:01:08]} Qg5 {[%emt 0:03:46]} 29. Kh2 {[%emt 0:01:33]} Qh4+ {[%emt 0:04:12]} 30. Kg1 {[%emt 0:00:38]} Qg5 {[%emt 0:00:36]} 31. Kh2 {[%emt 0:00:06]} e5 {[%emt 0:01:12]} 32. Bf1 {[%emt 0:01:50]} Qd8 {[%emt 0:01:57]} 33. Qg3 {[%emt 0:03:45]} Ka7 {[%emt 0:01:54]} 34. Qg7 {[%emt 0:00:47]} Qd2 {[%emt 0:00:58]} 35. Qg3 {[%emt 0:01:17]} Qxa2 {[%emt 0:00:21]} 36. Kg1 {[%emt 0:00:33]} Qd2 {[%emt 0:01:23]} 37. Bc4 {[%emt 0:00:48]} Qe1+ {[%emt 0:00:21]} 0-1

[Event "Bayerischer Schachbund IM 2024"]
[Site "Rosenheim"]
[Date "2024.08.15"]
[Round "6.7"]
[White "Reimann, Sebastian"]
[Black "Platzgummer, Fabian"]
[Result "1/2-1/2"]
[Annotator "RC"]
[ECO "B11"]
[WhiteElo "2327"]
[BlackElo "2304"]
[PlyCount "21"]
[EventDate "2024.08.12"]
[EventType "tourn"]
[EventCountry "GER"]
[SourceTitle "playchess.com"]
[Source "ChessBase"]
[SourceQuality "1"]
[TimeControl "40/5400+30:1800+30"]

1. e4 {[%emt 0:02:47]} c6 {[%emt 0:00:11]} 2. Nf3 {[%emt 0:00:07]} d5 {[%emt 0:00:09]} 3. Nc3 {[%emt 0:00:51]} dxe4 {[%emt 0:01:04]} 4. Nxe4 {[%emt 0:00:07]} Nf6 {[%emt 0:00:11]} 5. Qe2 {[%emt 0:00:10]} Nxe4 {[%emt 0:01:03]} 6. Qxe4 {[%emt 0:00:06]} Qa5 {[%emt 0:00:12]} 7. Qf4 {[%emt 0:00:24]} Qf5 {[%emt 0:00:29]} 8. d3 {[%emt 0:00:18]} Qxf4 {[%emt 0:08:50]} 9. Bxf4 {[%emt 0:00:08]} Bg4 {[%emt 0:00:06]} 10. Be2 {[%emt 0:00:22]} Nd7 {[%emt 0:00:45]} 11. Ne5 {[%emt 0:00:24]} 1/2-1/2

[Event "Bayerischer Schachbund IM 2024"]
[Site "Rosenheim"]
[Date "2024.08.15"]
[Round "6.8"]
[White "Hasenohr, Benedict"]
[Black "Lucas, Arthur"]
[Result "0-1"]
[Annotator "RC"]
[ECO "E14"]
[WhiteElo "2339"]
[BlackElo "2332"]
[PlyCount "118"]
[EventDate "2024.08.12"]
[EventType "tourn"]
[EventCountry "GER"]
[SourceTitle "playchess.com"]
[Source "ChessBase"]
[SourceQuality "1"]
[TimeControl "40/5400+30:1800+30"]

1. d4 {[%emt 0:00:03]} d5 {[%emt 0:01:03]} 2. Nf3 {[%emt 0:00:10]} Nf6 {[%emt 0:00:07]} 3. c4 {[%emt 0:00:05]} e6 {[%emt 0:00:05]} 4. e3 {[%emt 0:00:35]} Be7 {[%emt 0:01:12]} 5. b3 {[%emt 0:00:47]} O-O {[%emt 0:00:50]} 6. Bd3 {[%emt 0:00:08]} b6 {[%emt 0:04:27]} 7. O-O {[%emt 0:00:29]} Bb7 {[%emt 0:01:05]} 8. Bb2 {[%emt 0:00:47]} Nbd7 {[%emt 0:02:22]} 9. Qe2 {[%emt 0:01:33]} c5 {[%emt 0:05:59]} 10. Rd1 {[%emt 0:03:57]} Re8 {[%emt 0:13:53]} 11. Nbd2 {[%emt 0:12:07]} cxd4 {[%emt 0:06:11]} 12. exd4 {[%emt 0:07:02]} Nf8 {[%emt 0:01:02]} 13. Ne5 {[%emt 0:01:16]} Ng6 {[%emt 0:01:20]} 14. Qe3 {[%emt 0:03:50]} Nd7 {[%emt 0:08:46]} 15. Ndf3 {[%emt 0:09:18]} Ndxe5 {[%emt 0:04:05]} 16. Nxe5 {[%emt 0:02:03]} dxc4 {[%emt 0:09:29]} 17. Bxc4 {[%emt 0:00:57]} Bg5 {[%emt 0:07:03]} 18. Qg3 {[%emt 0:05:24]} a6 {[%emt 0:02:36]} 19. Nxg6 {[%emt 0:11:34]} hxg6 {[%emt 0:00:07]} 20. a4 {[%emt 0:00:16]} Bf6 {[%emt 0:02:21]} 21. Qd3 {[%emt 0:02:49]} Qd6 {[%emt 0:01:55]} 22. Rd2 {[%emt 0:06:43]} Red8 {[%emt 0:02:30]} 23. Rad1 {[%emt 0:02:47]} a5 {[%emt 0:02:26]} 24. Qg3 {[%emt 0:06:52]} Rac8 {[%emt 0:04:03]} 25. Qxd6 {[%emt 0:08:43]} Rxd6 {[%emt 0:00:04]} 26. f4 {[%emt 0:00:37]} Bd5 {[%emt 0:01:39]} 27. Rc2 {[%emt 0:00:48]} Rdc6 {[%emt 0:00:46]} 28. Rdc1 {[%emt 0:01:02]} g5 {[%emt 0:01:05]} 29. g3 {[%emt 0:00:04]} gxf4 {[%emt 0:00:40]} 30. gxf4 {[%emt 0:00:05]} g5 {[%emt 0:02:26]} 31. Rf2 {[%emt 0:07:41]} Bxc4 {[%emt 0:05:05]} 32. fxg5 {[%emt 0:00:06]} Bg7 {[%emt 0:04:36]} 33. bxc4 {[%emt 0:01:21]} Rxc4 {[%emt 0:00:04]} 34. Rcf1 {[%emt 0:01:51]} Rc2 {[%emt 0:03:15]} 35. Kg2 {[%emt 0:02:22]} Rxf2+ {[%emt 0:00:35]} 36. Rxf2 {[%emt 0:00:04]} Rc4 {[%emt 0:00:11]} 37. d5 {[%emt 0:00:39]} exd5 {[%emt 0:02:29]} 38. Bxg7 {[%emt 0:01:36]} Kxg7 {[%emt 0:00:01]} 39. Rf6 {[%emt 0:00:19]} Rb4 {[%emt 0:01:35]} 40. Kf3 {[%emt 0:00:15]} Rb3+ {[%emt 0:00:30]} 41. Kf4 {[%emt 0:03:06]} Rb4+ {[%emt 0:07:49]} 42. Ke5 {[%emt 0:03:39]} Rxa4 {[%emt 0:12:18]} 43. Rxb6 {[%emt 0:00:06]} Rg4 {[%emt 0:02:53]} 44. Kf5 {[%emt 0:01:23]} Rh4 {[%emt 0:01:48]} 45. Rb5 {[%emt 0:00:50]} a4 {[%emt 0:00:17]} 46. Ra5 {[%emt 0:00:20]} Rxh2 {[%emt 0:03:40]} 47. Rxa4 {[%emt 0:00:04]} Rf2+ {[%emt 0:00:20]} 48. Kg4 {[%emt 0:01:18]} Re2 {[%emt 0:02:45]} 49. Kf4 {[%emt 0:01:04]} Kg6 {[%emt 0:00:31]} 50. Ra5 {[%emt 0:02:11]} Re4+ {[%emt 0:00:07]} 51. Kf3 {[%emt 0:00:27]} Re5 {[%emt 0:00:15]} 52. Kf4 {[%emt 0:02:12]} Rf5+ {[%emt 0:00:15]} 53. Kg4 {[%emt 0:00:08]} Rxg5+ {[%emt 0:00:07]} 54. Kf4 {[%emt 0:00:51]} Rf5+ {[%emt 0:00:03]} 55. Kg4 {[%emt 0:00:29]} Kf6 {[%emt 0:01:31]} 56. Ra8 {[%emt 0:11:54]} Ke6 {[%emt 0:02:18]} 57. Re8+ {[%emt 0:01:55]} Kd7 {[%emt 0:00:01]} 58. Re1 {[%emt 0:00:06]} Rf2 {[%emt 0:00:28]} 59. Kg3 {[%emt 0:08:52]} Rf6 {[%emt 0:00:03]} 0-1

[Event "Bayerischer Schachbund IM 2024"]
[Site "Rosenheim"]
[Date "2024.08.15"]
[Round "6.9"]
[White "Miller, Eduard"]
[Black "Schneider, Jana"]
[Result "1/2-1/2"]
[Annotator "RC"]
[ECO "A07"]
[WhiteElo "2319"]
[BlackElo "2275"]
[PlyCount "61"]
[EventDate "2024.08.12"]
[EventType "tourn"]
[EventCountry "GER"]
[SourceTitle "playchess.com"]
[Source "ChessBase"]
[SourceQuality "1"]
[TimeControl "40/5400+30:1800+30"]

1. Nf3 {[%emt 0:03:09]} d5 {[%emt 0:00:12]} 2. g3 {[%emt 0:00:06]} Nf6 {[%emt 0:00:15]} 3. Bg2 {[%emt 0:00:04]} e6 {[%emt 0:00:23]} 4. O-O {[%emt 0:00:05]} Be7 {[%emt 0:00:34]} 5. d3 {[%emt 0:00:10]} O-O {[%emt 0:04:47]} 6. Nbd2 {[%emt 0:00:13]} Nc6 {[%emt 0:00:20]} 7. e4 {[%emt 0:00:16]} dxe4 {[%emt 0:00:17]} 8. dxe4 {[%emt 0:00:05]} e5 {[%emt 0:00:17]} 9. a4 {[%emt 0:00:06]} a5 {[%emt 0:00:59]} 10. Nc4 {[%emt 0:00:07]} Nxe4 {[%emt 0:02:30]} 11. Nfxe5 {[%emt 0:05:10]} Nxe5 {[%emt 0:00:58]} 12. Nxe5 {[%emt 0:00:15]} Nf6 {[%emt 0:06:08]} 13. Be3 {[%emt 0:10:48]} c6 {[%emt 0:05:32]} 14. Nc4 {[%emt 0:10:16]} Qxd1 {[%emt 0:06:18]} 15. Rfxd1 {[%emt 0:07:00]} Be6 {[%emt 0:00:32]} 16. Nb6 {[%emt 0:13:00]} Rad8 {[%emt 0:01:39]} 17. h3 {[%emt 0:00:58]} Rxd1+ {[%emt 0:04:02]} 18. Rxd1 {[%emt 0:00:08]} Rd8 {[%emt 0:00:12]} 19. Rd2 {[%emt 0:04:39]} Kf8 {[%emt 0:09:43]} 20. Bf1 {[%emt 0:04:18]} Ne4 {[%emt 0:04:05]} 21. Rxd8+ {[%emt 0:02:43]} Bxd8 {[%emt 0:00:02]} 22. Nc4 {[%emt 0:00:46]} Ke7 {[%emt 0:06:51]} 23. Bd3 {[%emt 0:03:01]} Nf6 {[%emt 0:01:43]} 24. Bc5+ {[%emt 0:01:08]} Kd7 {[%emt 0:00:49]} 25. Kg2 {[%emt 0:01:56]} g6 {[%emt 0:08:30]} 26. Ne5+ {[%emt 0:06:46]} Kc7 {[%emt 0:01:00]} 27. Bc4 {[%emt 0:01:05]} Nd5 {[%emt 0:01:32]} 28. b3 {[%emt 0:11:57]} b6 {[%emt 0:05:23]} 29. Bf8 {[%emt 0:01:47]} Bf6 {[%emt 0:01:02]} 30. Nd3 {[%emt 0:00:34]} Kd7 {[%emt 0:01:21]} 31. h4 {[%emt 0:07:56]} 1/2-1/2

[Event "Bayerischer Schachbund IM 2024"]
[Site "Rosenheim"]
[Date "2024.08.15"]
[Round "6.10"]
[White "Georgescu, Lena"]
[Black "Goldbeck, Lars"]
[Result "1/2-1/2"]
[Annotator "RC"]
[ECO "B12"]
[WhiteElo "2209"]
[BlackElo "2321"]
[PlyCount "58"]
[EventDate "2024.08.12"]
[EventType "tourn"]
[EventCountry "GER"]
[SourceTitle "playchess.com"]
[Source "ChessBase"]
[SourceQuality "1"]
[TimeControl "40/5400+30:1800+30"]

1. e4 {[%emt 1:31:00]} c6 {[%emt 1:31:00]} 2. d4 {[%emt 0:00:30]} d5 3. e5 {[%emt 0:00:30]} Bf5 {[%emt 0:01:00]} 4. h4 {[%emt 0:00:30]} a6 {[%emt 0:00:30]} 5. h5 {[%emt 0:00:30]} c5 {[%emt 0:00:30]} 6. dxc5 {[%emt 0:00:30]} Nc6 {[%emt 0:00:30]} 7. Bd3 {[%emt 0:00:30]} Qd7 {[%emt 0:00:30]} 8. Nf3 {[%emt 0:00:30]} e6 {[%emt 0:00:30]} 9. Be3 {[%emt 0:00:30]} Bg4 {[%emt 0:00:30]} 10. Nbd2 {[%emt 0:00:30]} f6 {[%emt 0:00:30]} 11. exf6 {[%emt 0:00:30]} gxf6 {[%emt 0:00:30]} 12. c3 {[%emt 0:00:30]} e5 {[%emt 0:00:30]} 13. Qa4 {[%emt 0:00:30]} e4 {[%emt 0:00:30]} 14. Nxe4 {[%emt 0:00:30]} dxe4 {[%emt 0:00:30]} 15. Qxe4+ {[%emt 0:00:30]} Qe6 {[%emt 0:00:30]} 16. Nd4 {[%emt 0:00:30]} Qxe4 {[%emt 0:00:30]} 17. Bxe4 {[%emt 0:00:30]} Nge7 {[%emt 0:00:30]} 18. f3 {[%emt 0:00:30]} Bd7 {[%emt 0:00:30]} 19. O-O-O {[%emt 0:00:30]} Rd8 {[%emt 0:00:30]} 20. g4 {[%emt 0:00:30]} Bc8 {[%emt 0:00:30]} 21. Rhe1 {[%emt 0:00:30]} Kf7 {[%emt 0:00:30]} 22. Nxc6 {[%emt 0:00:30]} Rxd1+ {[%emt 0:00:30]} 23. Rxd1 {[%emt 0:00:30]} Nxc6 {[%emt 0:00:30]} 24. b4 {[%emt 0:00:30]} h6 25. a4 {[%emt 0:00:30]} Be7 {[%emt 0:01:00]} 26. Kc2 {[%emt 0:00:30]} Be6 {[%emt 0:00:30]} 27. Bf4 {[%emt 0:00:30]} Kg7 {[%emt 0:00:30]} 28. Bd5 {[%emt 0:00:30]} Bc8 {[%emt 0:00:30]} 29. Re1 {[%emt 0:00:30]} Ne5 {[%emt 0:00:30]} 1/2-1/2